[Event "1000IM Saint Louis 2022"]
[Site "Saint Louis"]
[Date "2022.07.21"]
[Round "6.1"]
[White "Cervantes Landeiro, Thalia"]
[Black "Kozelov, Roman"]
[Result "1-0"]
[ECO "D94"]
[WhiteElo "2234"]
[BlackElo "2104"]
[Annotator "TA"]
[PlyCount "71"]
[EventDate "2022.07.20"]
[EventType "tourn"]
[EventCountry "USA"]
[SourceTitle "playchess.com"]
[Source "ChessBase"]
[SourceQuality "1"]
[TimeControl "5400+30"]

{[%evp 18,71,45,50,66,49,41,35,56,32,26,35,45,37,45,33,48,54,92,49,35,44,47,52,48,37,195,166,166,156,256,249,243,234,241,218,424,434,427,428,403,258,240,170,414,370,463,443,811,490,1688,470,779,774,725,545]} 1. d4 {[%emt 0:00:03]} d5 {[%emt 0:00:05]} 2. c4 {[%emt 0:00:08]} c6 {[%emt 0:00:04]} 3. Nf3 {[%emt 0:00:05]} Nf6 {[%emt 0:00:05][%cal Bg8f6,Bf6d5,Bd5c3][%mdl 32]} 4. e3 {[%emt 0:00:08]} g6 {[%emt 0:00:25]} 5. Nc3 {[%emt 0:02:49]} Bg7 {[%emt 0:00:17]} 6. Be2 {[%emt 0:02:45]} O-O {[%emt 0:00:34]} 7. O-O {[%emt 0:00:19]} Nbd7 {[%emt 0:00:44]} 8. cxd5 {[%emt 0:02:36]} Nxd5 {[%emt 0:03:06]} 9. e4 {[%emt 0:02:51]} Nxc3 {[%emt 0:01:59]} 10. bxc3 {[%emt 0:00:06]} e5 {[%emt 0:00:24] D94: Grünfeld: 4 Nf3 Bg7 5 e3.} 11. Bg5 {[%emt 0:12:29] White is more active.} Qa5 {[%emt 0:03:11] [#]} 12. Bd2 $146 {[%emt 0:07:54]} ({Predecessor:} 12. Qb3 exd4 13. cxd4 Nf6 14. Bxf6 Bxf6 15. e5 Be7 16. a4 Rb8 17. Bc4 Kg7 18. h3 {1-0 (56) Swapnil,S (2425)-Padmini,R (2342) Aurangabad 2011}) 12... Qc7 {[%emt 0:02:46] White is slightly better.} 13. Rc1 {[%emt 0:01:37]} Re8 {[%emt 0:09:19]} 14. Qc2 {[%emt 0:04:04]} b6 {[%emt 0:01:14]} 15. Bc4 {[%emt 0:02:58]} Nf8 {[%emt 0:08:11]} 16. Be3 {[%emt 0:12:26]} Be6 {[%emt 0:02:44]} 17. Bd3 {[%emt 0:02:49]} c5 {[%emt 0:04:52]} 18. Nxe5 {[%emt 0:07:14]} Bxe5 {[%emt 0:04:08]} 19. dxe5 {[%emt 0:00:08]} Qxe5 {[%emt 0:00:22]} 20. f4 {[%emt 0:00:48]} Qc7 {[%emt 0:02:27]} 21. f5 {[%emt 0:03:04]} gxf5 {[%emt 0:02:55] Black cannot hold the game after this.} ({Better is} 21... Bxf5 $14 22. Bf4 Qe7) 22. Bf4 {[%emt 0:01:14] This bishop pair is nice.} Qc6 {[%emt 0:03:57]} 23. exf5 {[%emt 0:01:20]} Bd5 {[%emt 0:00:25]} (23... c4 $16) 24. c4 $18 {[%emt 0:02:53]} Be4 {[%emt 0:00:12]} 25. Rce1 {[%emt 0:00:31][%cal Rd3e4,Bc1e1,Be1d1,Bd1d6][%mdl 32]} Bxd3 {[%emt 0:02:26]} 26. Qxd3 {[%emt 0:00:11]} f6 $2 {[%emt 0:02:27]} (26... Kh8 {was called for.} 27. Bd6 Nd7 28. Qc3+ f6) 27. Qg3+ {[%emt 0:04:02]} Kh8 {[%emt 0:00:21]} 28. Bh6 {[%emt 0:00:55][%csl Gh6][%cal Rg3g7] [#]} Qd7 {[%emt 0:02:18] Inhibits Qg7+.} 29. Rd1 {[%emt 0:01:47]} Qf7 {[%emt 0:00:37]} 30. Rd6 {[%emt 0:08:07] Rfd1 is the strong threat.} Rad8 $2 {[%emt 0:04:05]} (30... Nd7 {was necessary.} 31. Qh4 Ne5) 31. Rfd1 {[%emt 0:00:25]} Rxd6 {[%emt 0:00:43]} 32. Qxd6 {[%emt 0:00:17] White is clearly winning.} ({Weaker is} 32. Rxd6 Nd7 $16) 32... Re7 {[%emt 0:06:00]} (32... Ng6 $142 33. fxg6 hxg6) 33. Qc6 {[%emt 0:03:32] [#] Threatens to win with Rd8.} Kg8 {[%emt 0:06:21]} (33... Re8 $142 34. h3 Qe7) 34. Rd3 {[%emt 0:03:58]} (34. Rd8 $142 {Qd5 would kill now.} Qg7 35. Bxg7 Kxg7 36. Qd6) 34... Rd7 {[%emt 0:08:26] Inhibits Qd5.} (34... Re1+ $142 35. Kf2 Re8 36. Rg3+ Ng6 37. fxg6 hxg6) 35. Rg3+ {[%emt 0:01:08]} Kh8 {[%emt 0:00:04]} 36. h3 {[%emt 0:03:58] Weighted Error Value: White=0.53/Black=0.54} 1-0

[Event "1000IM Saint Louis 2022"]
[Site "Saint Louis"]
[Date "2022.07.21"]
[Round "6.2"]
[White "Wang, Tianqi"]
[Black "Nyzhnyk, Illya"]
[Result "0-1"]
[ECO "B23"]
[WhiteElo "2402"]
[BlackElo "2686"]
[Annotator "TA"]
[PlyCount "154"]
[EventDate "2022.07.20"]
[EventType "tourn"]
[EventCountry "USA"]
[SourceTitle "playchess.com"]
[Source "ChessBase"]
[SourceQuality "1"]
[TimeControl "5400+30"]

{[%evp 10,154,22,-1,101,5,-6,-10,4,-2,79,78,89,76,77,78,78,38,48,37,29,27,47,16,8,14,19,12,52,11,18,22,23,17,36,20,41,0,11,-9,-9,-4,-2,-7,-2,-5,-6,-11,-18,-37,-35,-35,-30,-73,-38,-43,-13,-28,-27,-29,-25,-36,-32,-33,-37,-52,-40,-43,-45,-63,-63,-62,-69,-77,-69,-58,-62,-117,-110,-100,-54,-81,-54,-71,-54,-54,-34,-55,-11,-11,-11,-11,-11,-11,0,0,0,0,0,0,0,0,0,0,0,0,0,-8,-8,-8,-8,-8,-8,-8,-8,-95,-86,-298,-268,-266,-268,-219,-195,-1177,-1191,-1144,-1105,-1024,-1015,-1650,-1413,-882,-875,-29975,-29976,-29976,-29977,-29977,-29978,-29978,-29979,-29979,-29980,-29979,-29980,-29980,-29981]} 1. e4 {[%emt 0:00:27]} c5 {[%emt 0:00:59]} 2. Nc3 {[%emt 0:00:10]} a6 {[%emt 0:00:09]} 3. g3 {[%emt 0:00:06]} b5 {[%emt 0:00:04]} 4. Bg2 {[%emt 0:00:04]} Bb7 {[%emt 0:00:03]} 5. d3 {[%emt 0:00:07]} e6 {[%emt 0:00:23]} 6. Nh3 {[%emt 0:00:07]} d5 {[%emt 0:02:30] B23: Closed Sicilian: Lines without g3.} (6... d6 $11 {keeps the balance.}) 7. O-O {[%emt 0:01:30]} (7. exd5 $16 {Threatens to win with 0-0.} b4 8. Bg5) 7... d4 $11 {[%emt 0:02:38]} 8. Ne2 {[%emt 0:00:11] [#]} h6 $146 {[%emt 0:01:24] The position is equal.} ({Predecessor:} 8... Bd6 9. f4 e5 10. Ng5 f6 11. fxe5 Bxe5 12. Nf3 Nd7 13. Nf4 Bxf4 14. Bxf4 Ne7 {0-1 (48) Manukyan,A (2148)-Nemeth Junior,H (2001) Chess.com INT 2020}) 9. f4 {[%emt 0:00:18]} f5 {[%emt 0:05:57]} (9... Nf6 $11 {remains equal.}) 10. Nf2 {[%emt 0:01:00]} Nf6 {[%emt 0:00:48]} 11. c3 {[%emt 0:03:19]} Qd7 {[%emt 0:04:22]} 12. cxd4 cxd4 {[%emt 0:00:04]} 13. h3 {[%emt 0:06:10]} Bc5 14. Kh2 {[%emt 0:00:00]} Nc6 {[%emt 0:04:23]} 15. Bd2 {[%emt 0:06:19]} Ne7 {[%emt 0:00:43]} 16. Nc1 {[%emt 0:01:03]} Bb6 {[%emt 0:03:24]} 17. Nb3 {[%emt 0:01:04]} Rc8 {[%emt 0:05:21]} 18. Qe2 {[%emt 0:00:47]} Kf7 {[%emt 0:01:35]} 19. Rac1 {[%emt 0:01:00]} Rxc1 {[%emt 0:00:31]} 20. Rxc1 {[%emt 0:00:05]} Rc8 {[%emt 0:00:07]} 21. Rxc8 {[%emt 0:00:09]} Qxc8 {[%emt 0:00:05]} 22. Bb4 {[%emt 0:08:35]} g6 {[%emt 0:02:13]} 23. Qd1 {[%emt 0:07:50]} Qc7 {[%emt 0:06:07]} 24. Qc1 {[%emt 0:00:59]} (24. Qd2 {is interesting.} h5 25. Ba5 h4 26. Bxb6 hxg3+ 27. Kxg3 Nh5+ 28. Kh2) 24... Qxc1 {[%emt 0:02:03]} 25. Nxc1 {[%emt 0:00:07]} Nc6 {[%emt 0:00:06]} 26. Bd2 {[%emt 0:00:17]} a5 {[%emt 0:00:05]} 27. a3 {[%emt 0:02:01]} a4 {[%emt 0:01:02]} 28. Kg1 {[%emt 0:03:46]} Nd7 {[%emt 0:03:40]} 29. g4 {[%emt 0:00:48]} Nc5 {[%emt 0:00:58]} 30. exf5 {[%emt 0:00:34]} exf5 {[%emt 0:00:37]} 31. Kf1 {[%emt 0:00:10]} Nd8 {[%emt 0:06:01]} 32. Nh1 {[%emt 0:04:33]} Nde6 {[%emt 0:02:03]} 33. gxf5 {[%emt 0:02:05]} gxf5 {[%emt 0:00:06]} 34. Ng3 {[%emt 0:00:08]} Kg6 {[%emt 0:00:29]} 35. Kf2 {[%emt 0:02:49]} Bxg2 {[%emt 0:08:48]} 36. Kxg2 {[%emt 0:00:12]} h5 {[%emt 0:00:18][%cal Bh6h5,Bh5h4][%mdl 32]} 37. Kf3 {[%emt 0:00:16]} h4 {[%emt 0:00:11]} 38. Nge2 {[%emt 0:00:07]} Kf7 {[%emt 0:00:15]} 39. Be1 {[%emt 0:00:14]} Bd8 {[%emt 0:00:02]} 40. Bf2 {[%emt 0:00:26]} Bf6 {[%emt 0:00:05]} 41. Be1 {[%emt 0:00:07]} Ke7 {[%emt 0:00:37] Black is more active.} 42. Bb4 {[%emt 0:00:39]} Kd7 {[%emt 0:00:03]} 43. Be1 {[%emt 0:00:04]} (43. Ng1 $15) 43... Kc6 {[%emt 0:00:27]} 44. Bd2 {[%emt 0:01:31]} Kd5 {[%emt 0:01:37]} (44... Nc7 $17) 45. Be1 {[%emt 0:00:14]} Nd8 {[%emt 0:00:14]} 46. Kg2 {[%emt 0:02:07]} Be7 {[%emt 0:00:23]} 47. Kf3 {[%emt 0:00:06]} Nc6 {[%emt 0:00:51]} 48. Kg2 {[%emt 0:01:51]} Nb3 {[%emt 0:03:59]} 49. Nxb3 {[%emt 0:15:24]} axb3 {[%emt 0:00:05][%mdl 4096] Endgame KBN-KBN} 50. Nc1 {[%emt 0:00:05] [#]} Bxa3 $1 {[%emt 0:00:25]} 51. Nxb3 {[%emt 0:00:03]} (51. Kf3 Be7) 51... Be7 {[%emt 0:00:05]} 52. Kf3 {[%emt 0:00:07]} Nd8 {[%emt 0:00:05]} 53. Bd2 {[%emt 0:06:13]} Ne6 {[%emt 0:00:07]} 54. Nc1 {[%emt 0:04:04]} Bd6 {[%emt 0:06:59]} 55. Nb3 {[%emt 0:00:15]} Bb8 {[%emt 0:00:23]} 56. Bc1 {[%emt 0:00:31]} Bc7 {[%emt 0:00:04]} 57. Bd2 {[%emt 0:00:14]} Bd6 {[%emt 0:00:02]} 58. Bc1 {[%emt 0:01:48]} Bb4 {[%emt 0:02:47]} 59. Ke2 {[%emt 0:00:19]} Kc6 {[%emt 0:00:56]} 60. Kf3 {[%emt 0:00:30]} Kb6 {[%emt 0:00:40]} 61. Ke2 {[%emt 0:00:13]} Bd6 {[%emt 0:00:21]} 62. Kf3 {[%emt 0:01:46]} (62. Kd1 $1 $11) 62... b4 $1 $17 {[%emt 0:00:16]} 63. Nd2 $2 {[%emt 0:15:34] Loses the game.} (63. Na1 $17) 63... Kb5 $19 {[%emt 0:00:07]} 64. Nc4 {[%emt 0:00:40] [#]} Bc7 $1 {[%emt 0:02:44]} 65. Ne5 {[%emt 0:02:20] [#]} Ka4 $1 {[%emt 0:05:53]} 66. Ng6 $2 {[%emt 0:01:00]} (66. Bd2) 66... Kb3 {[%emt 0:01:26]} 67. Bd2 {[%emt 0:01:47]} Bd6 {[%emt 0:00:28]} 68. Nxh4 {[%emt 0:01:12]} Ng7 {[%emt 0:00:03]} 69. Ke2 {[%emt 0:03:26]} Kxb2 {[%emt 0:00:05] White must now prevent ...b3.} 70. Nf3 {[%emt 0:00:05]} Ne6 {[%emt 0:00:04] Strongly threatening ...b3.} 71. Ne5 {[%emt 0:01:17]} Bxe5 {[%emt 0:01:42] Black mates.} 72. fxe5 {[%emt 0:00:06] KB-KN} b3 {[%emt 0:00:02]} 73. Kd1 {[%emt 0:00:14]} Ka2 {[%emt 0:00:34]} 74. Bc1 {[%emt 0:00:20]} b2 {[%emt 0:00:03]} 75. Bxb2 {[%emt 0:00:03]} Kxb2 {[%emt 0:00:04]} 76. h4 {[%emt 0:00:02]} Nf4 {[%emt 0:00:09]} ({Stronger than} 76... Kc3 77. h5 Nf4 78. h6 Nxd3 79. h7 Nb2+ 80. Ke1 $17 (80. Ke2 d3+ 81. Kf2 d2 $17)) 77. Kd2 {[%emt 0:00:58]} Kb3 {[%emt 0:00:04] Weighted Error Value: White=0.14 (very precise) /Black=0.14 (very precise)} 0-1

[Event "1000IM Saint Louis 2022"]
[Site "Saint Louis"]
[Date "2022.07.21"]
[Round "6.3"]
[White "Tokhirjonova, Gulrukhbegim"]
[Black "Altman, Joshua"]
[Result "0-1"]
[ECO "C10"]
[WhiteElo "2329"]
[BlackElo "2162"]
[Annotator "TA"]
[PlyCount "131"]
[EventDate "2022.07.20"]
[EventType "tourn"]
[EventCountry "USA"]
[SourceTitle "playchess.com"]
[Source "ChessBase"]
[SourceQuality "1"]
[TimeControl "5400+30"]

{[%evp 18,131,34,41,37,6,9,0,-7,0,0,-39,-38,-35,-23,-19,-27,-43,-17,-73,-79,-103,-104,-99,-104,-117,-110,-130,-135,-158,-122,-141,-135,-127,-127,-152,-160,-289,-295,-278,-222,-215,-205,-220,-213,-314,-316,-520,-513,-507,-500,-471,-470,-649,-486,-1267,-926,-1041,-966,-29990,-1692,-1825,-1810,-1976,-1793,-1433,-1156,-1089,-1036,-1114,-837,-1746,-1738,-1735,-1589,-1574,-1589,-12834,-12835,-12841,-12831,-2655,-1169,-1468,-1411,-4335,-4382,-2316,-2025,-6886,-5712,-12836,-12836,-12843,-12843,-12847,-12846,-12846,-12847,-12847,-12847,-12848,-12847,-12849,-12847,-12850,-12848,-12850,-12849,-12850,-12848,-12849,-12849,-12850,-12850,-12850]} 1. e4 {[%emt 0:01:59]} e6 {[%emt 0:00:03]} 2. d4 {[%emt 0:00:19]} d5 {[%emt 0:00:02]} 3. Nc3 {[%emt 0:00:27]} Nf6 {[%emt 0:00:12]} 4. Bg5 {[%emt 0:01:04]} dxe4 {[%emt 0:00:29]} 5. Nxe4 {[%emt 0:00:41]} Nbd7 {[%emt 0:00:27][%cal Bb8d7,Bd7f6,Bf6d5][%mdl 32]} 6. Nf3 {[%emt 0:00:26]} Be7 {[%emt 0:03:13]} 7. Nxf6+ {[%emt 0:00:38]} Nxf6 {[%emt 0:00:44]} 8. Bd3 {[%emt 0:00:50]} b6 {[%emt 0:04:10]} 9. Qe2 {[%emt 0:01:14]} Bb7 {[%emt 0:00:07]} 10. O-O-O {[%emt 0:00:42]} Bxf3 {[%emt 0:02:12] C10: French with 3 Nc3: Unusual Black 3rd moves and 3...dxe4.} 11. gxf3 {[%emt 0:03:09]} Nd5 {[%emt 0:09:23]} 12. Bb5+ {[%emt 0:01:00] A strong pair of Bishops.} Kf8 {[%emt 0:00:01] The position is equal.} 13. Bd2 {[%emt 0:00:51]} Qd6 {[%emt 0:26:05] [#]} 14. Kb1 $146 {[%emt 0:03:52]} (14. Ba4 {with more complications.} a6 15. c4 b5 16. cxd5 bxa4 17. dxe6 Qxe6 18. Qe4) ({Predecessor:} 14. c4 c6 15. cxd5 cxb5 16. dxe6 Rc8+ 17. Kb1 Qxe6 18. Qxb5 Qg6+ 19. Ka1 Qe6 20. Rhe1 {1-0 (27) Sukandar,I (2092)-Cheri,S Jakarta 2005}) 14... c6 {[%emt 0:05:08]} 15. Bd3 {[%emt 0:01:28]} Nf4 {[%emt 0:02:21]} 16. Bxf4 {[%emt 0:01:10]} Qxf4 {[%emt 0:00:01]} 17. Be4 {[%emt 0:00:11]} Rc8 {[%emt 0:02:08]} 18. c4 {[%emt 0:10:18]} (18. Qe3 $11 {keeps the balance.} Qh4 19. f4) 18... g6 $17 19. Bc2 {[%emt 0:01:53]} Bf6 20. Qe3 {[%emt 0:02:19]} Qh4 {[%emt 0:15:54]} 21. f4 {[%emt 0:09:15]} Kg7 {[%emt 0:00:06]} 22. Rhg1 {[%emt 0:00:15]} c5 {[%emt 0:11:32]} (22... Qxh2 $2 23. Rh1 Qxh1 24. Rxh1 $18) 23. dxc5 {[%emt 0:06:00]} bxc5 {[%emt 0:01:01]} 24. Rd7 {[%emt 0:00:26]} Rhd8 {[%emt 0:03:51]} ({Weaker is} 24... Qxh2 25. Qg3 Qxg3 26. fxg3 $17) 25. Rxa7 {[%emt 0:04:21]} Qxh2 {[%emt 0:01:18]} 26. Qg3 {[%emt 0:03:08] [#]} Qh5 {[%emt 0:02:13] ...Rb8 is the strong threat.} 27. Qg2 {[%emt 0:02:35]} (27. Re1 $17) 27... Rb8 $19 {[%emt 0:03:42]} 28. b3 {[%emt 0:02:41]} Qe2 {[%emt 0:02:45][%cal Od8d3] White must now prevent ...Rd3!} 29. Qe4 {[%emt 0:03:35] Inhibits Rd3.} Qxe4 {[%emt 0:03:24] Chess con chili.} 30. Bxe4 {[%emt 0:00:03]} Rd2 {[%emt 0:00:34]} 31. f3 {[%emt 0:02:47]} (31. f5 {was worth a try.} exf5 32. Bd5) 31... Rbd8 {[%emt 0:01:00]} 32. Kc1 {[%emt 0:04:31]} (32. f5 {was called for.} Bd4 33. Rh1 gxf5 34. Bc6) 32... Rh2 {[%emt 0:01:04]} 33. f5 {[%emt 0:05:18]} Bd4 {[%emt 0:00:32]} 34. Re1 {[%emt 0:00:25] Prevents Be3+. aiming for fxe6.} gxf5 {[%emt 0:00:24]} 35. Bc2 {[%emt 0:00:24]} Kf6 {[%emt 0:01:10]} 36. a4 {[%emt 0:00:19]} (36. f4 $142) 36... Rg8 {[%emt 0:00:19]} 37. Rd7 {[%emt 0:02:29]} Rgg2 {[%emt 0:00:21]} 38. Bb1 {[%emt 0:00:13]} Rd2 {[%emt 0:00:46]} (38... Bc3 $142 39. Rf1 Bb4 40. Kd1 Rb2 41. Bd3 Rbd2+ 42. Kc1 Ba3+ 43. Kb1 Rb2+ 44. Kc1 Ra2+ 45. Kb1 Rhb2+ 46. Kc1 Ra1+ 47. Bb1 Raxb1#) 39. Rxd4 {[%emt 0:00:47] Black is clearly winning.} Rxd4 {[%emt 0:00:25][%mdl 4096] Endgame KRR-KRB} 40. Bc2 {[%emt 0:01:14]} h5 {[%emt 0:00:22] Strongly threatening ...h4.} 41. a5 {[%emt 0:00:54]} Rd6 {[%emt 0:00:37]} 42. Kb2 {[%emt 0:00:13]} Rg2 {[%emt 0:00:24]} 43. Kc3 {[%emt 0:00:24]} Rf2 {[%emt 0:00:28]} 44. Bd1 {[%emt 0:00:33]} h4 {[%emt 0:00:37]} 45. b4 {[%emt 0:00:53]} cxb4+ {[%emt 0:00:19]} 46. Kxb4 {[%emt 0:00:02]} Rb2+ {[%emt 0:00:18]} 47. Kc3 {[%emt 0:02:00]} Rb1 {[%emt 0:00:10] ( -> ...Rc1+)} 48. Kc2 {[%emt 0:00:22] Inhibits Rc1+.} Ra1 {[%emt 0:00:07]} 49. Rh1 {[%emt 0:00:13] [#]} Kg5 {[%emt 0:00:35]} (49... Rdxd1 $142 $1 50. Rxh4 Rf1) 50. f4+ {[%emt 0:00:38]} Kxf4 {[%emt 0:00:20][%cal Od6d1]} 51. Rxh4+ {[%emt 0:00:04]} Kg3 {[%emt 0:00:22]} 52. Rh1 {[%emt 0:00:03]} Rxa5 {[%emt 0:00:09] And now ...Ra1 would win.} 53. Bh5 {[%emt 0:00:17]} Rd4 {[%emt 0:00:25]} 54. Kc3 {[%emt 0:00:18]} Rh4 {[%emt 0:00:30]} 55. Rxh4 {[%emt 0:00:15]} Kxh4 {[%emt 0:00:03]} 56. Bxf7 {[%emt 0:00:05] KR-KB} e5 {[%emt 0:01:13][%cal Be6e5,Be5e4,Be4e3][%mdl 32]} 57. Kb4 {[%emt 0:00:19]} Ra7 {[%emt 0:00:29]} 58. Bd5 {[%emt 0:00:07]} e4 {[%emt 0:00:52]} 59. Kc3 {[%emt 0:00:24]} Kg3 {[%emt 0:01:21]} 60. Kd4 {[%emt 0:00:10]} Kf4 {[%emt 0:00:23]} 61. c5 {[%emt 0:00:24]} e3 {[%emt 0:00:22]} 62. Bc4 {[%emt 0:00:10]} Rd7+ {[%emt 0:00:20]} 63. Kc3 {[%emt 0:00:07]} Kf3 {[%emt 0:00:24]} 64. c6 {[%emt 0:01:55]} Rc7 {[%emt 0:00:09]} 65. Bb5 {[%emt 0:01:07]} Kf2 {[%emt 0:00:18]} 66. Kd4 {[%emt 0:01:37] Black took control after the opening.  Weighted Error Value: White=0.78/Black=0.45} 0-1

[Event "1000IM Saint Louis 2022"]
[Site "Saint Louis"]
[Date "2022.07.21"]
[Round "6.4"]
[White "Sethuraman, Sandeep"]
[Black "Stefanov, Emil"]
[Result "1/2-1/2"]
[ECO "E35"]
[WhiteElo "2305"]
[BlackElo "2342"]
[Annotator "TA"]
[PlyCount "63"]
[EventDate "2022.07.20"]
[EventType "tourn"]
[EventCountry "USA"]
[SourceTitle "playchess.com"]
[Source "ChessBase"]
[SourceQuality "1"]
[TimeControl "5400+30"]

{[%evp 12,63,20,31,16,22,17,14,39,24,19,28,38,33,37,19,48,43,54,49,101,48,52,54,45,33,32,35,45,57,56,43,44,64,47,9,18,23,23,16,24,15,22,0,0,0,0,0,0,0,0,0,0,-22]} 1. d4 {[%emt 0:00:01]} Nf6 {[%emt 0:00:10]} 2. c4 {[%emt 0:00:05]} e6 {[%emt 0:00:10]} 3. Nc3 {[%emt 0:00:08]} Bb4 {[%emt 0:00:08]} 4. Qc2 {[%emt 0:00:05]} d5 {[%emt 0:00:15]} 5. cxd5 {[%emt 0:00:29]} exd5 {[%emt 0:00:12]} 6. Bg5 {[%emt 0:00:34][%cal Bc1g5,Bg5h4,Bh4g3][%mdl 32]} h6 {[%emt 0:00:20]} 7. Bh4 {[%emt 0:00:36]} g5 {[%emt 0:03:59] E35: Nimzo-Indian: Classical: 4...d5 5 cxd5 exd5.} 8. Bg3 {[%emt 0:00:06]} Nc6 $1 {[%emt 0:00:05][%mdl 4] is more profitable than 8...Ne4 at the moment.} 9. e3 {[%emt 0:00:49]} Ne4 {[%emt 0:01:26]} 10. Bd3 {[%emt 0:02:36]} Bf5 {[%emt 0:02:30]} 11. Nge2 {[%emt 0:04:43]} Qe7 {[%emt 0:15:48]} 12. O-O {[%emt 0:11:48]} Bxc3 {[%emt 0:01:40]} 13. Nxc3 {[%emt 0:04:41]} Nb4 {[%emt 0:04:42]} 14. Qa4+ {[%emt 0:00:42]} Bd7 $1 {[%emt 0:00:06]} 15. Bb5 {[%emt 0:06:32] [#]} Nxg3 $146 {[%emt 0:09:26]} ({Better is} 15... Bxb5 $14 16. Nxb5 (16. Qxb5+ c6 $14) 16... O-O) ({Predecessor:} 15... c6 16. Be2 h5 17. Be5 b5 18. Nxb5 cxb5 19. Bxb5 f6 20. f3 Nd2 21. Bxf6 Qxf6 22. Bxd7+ {0-1 (44) Potapova,M (2277)-Drygalov,S (2490) Chess.com INT 2021}) 16. hxg3 {[%emt 0:02:27]} ({White should play} 16. Bxd7+ $16 Qxd7 17. Qxd7+ Kxd7 18. fxg3) 16... Bxb5 $1 $14 {[%emt 0:01:36]} 17. Qxb5+ {[%emt 0:00:31]} c6 {[%emt 0:00:05]} 18. Qe2 {[%emt 0:02:11]} (18. Qa4 $5 {[%cal Ra2a3]}) 18... O-O {[%emt 0:05:43]} 19. g4 {[%emt 0:07:03]} f5 {[%emt 0:02:25]} 20. gxf5 {[%emt 0:03:36]} Rxf5 {[%emt 0:00:08]} 21. Rae1 {[%emt 0:02:25]} Rd8 {[%emt 0:12:31]} 22. a3 {[%emt 0:05:37]} Na6 {[%emt 0:00:00][%cal Bb4a6,Ba6c7,Bc7d5,Bd5f4][%mdl 32]} 23. Qh5 {[%emt 0:04:53] [#] Black must now prevent Qg6+.} Qg7 {[%emt 0:03:59] Against Qg6} 24. e4 {[%emt 0:01:13]} dxe4 {[%emt 0:00:05]} 25. Rxe4 {[%emt 0:00:28]} Nc7 {[%emt 0:00:41] Against Re6} 26. Rfe1 {[%emt 0:11:11] Re7 is the strong threat.} Rf7 {[%emt 0:03:38] Prevents Re7. The position is equal.} 27. Nd1 {[%emt 0:05:09]} Nd5 {[#] Threatens to win with ...Nf6.} 28. Re8+ {[%emt 0:02:41]} Rxe8 {[%emt 0:05:26]} 29. Rxe8+ {[%emt 0:00:00]} Kh7 {Strongly threatening ...Nf6.} 30. Re5 {[%emt 0:00:00][%cal Oe5g5]} Nf4 31. Qf3 {[%emt 0:05:37]} Qg6 {And now ...Nd3 would win.} 32. Ne3 {[%emt 0:09:52] Weighted Error Value: White=0.07 (flawless) /Black=0.06 (flawless)} 1/2-1/2